[Event "2nd Asian Nations Team Cup U14 2019"]
[Site "Shenzhen"]
[Date "2019.12.23"]
[Round "5.13"]
[White "Batbold, Nyamsuren"]
[Black "Jin Yueheng"]
[Result "1-0"]
[ECO "E17"]
[WhiteElo "1963"]
[BlackElo "1924"]
[Annotator "NA RC"]
[PlyCount "189"]
[EventDate "2019.12.19"]
[EventType "team-tourn"]
[EventCountry "CHN"]
[SourceTitle "playchess.com"]
[Source "ChessBase"]
[SourceQuality "1"]
[WhiteTeam "Mongolia"]
[BlackTeam "China"]
[WhiteTeamCountry "MGL"]
[BlackTeamCountry "CHN"]
[TimeControl "5400+30"]

{[%evp 9,181,18,3,14,6,-4,-8,-5,8,12,0,0,28,24,45,36,44,34,53,-22,-15,-11,22,24,25,20,28,33,47,42,66,37,74,33,50,36,34,37,33,38,115,128,122,125,123,135,143,32767,32767,32767,32767,32767,32767,33,77,94,137,129,190,153,270,270,344,332,385,455,553,354,436,0,530,478,755,852,802,817,768,32767,32767,32767,32767,1709,1575,2055,1631,32767,32767,32767,32767,29977,5197,29976,29968,249,221,32767,32767,32767,32767,32767,32767,32767,32767,32767,32767,32767,375,435,462,0,0,0,0,0,0,0,337,371,345,0,374,444,785,475,399,433,779,1043,825,1103,1510,1521,1252,1516,4889,5344,12841,12844,12845,29971,4133,12846,29980,0,2659,0,12794,29975,12851,0,29973,12851,5061,29976,9615,29977,29981,27999,29984,27999,29985,29983,12851,0,29985,27999,29987,29983,29983,29984,12851,29983,29989,29977]} 1. d4 {[%emt 0:00:00]} Nf6 {[%emt 0:00:00]} 2. c4 {[%emt 0:00:00]} e6 {[%emt 0:00:00]} 3. Nf3 {[%emt 0:00:00]} b6 {[%emt 0:00:00]} 4. g3 {[%emt 0:00:02]} Bb7 {[%emt 0:00:00]} 5. Bg2 {[%emt 0:00:10]} Be7 {[%emt 0:00:29]} 6. O-O {[%emt 0:00:28]} O-O {[%emt 0:00:08]} 7. d5 {[%emt 0:00:36]} exd5 {[%emt 0:01:36]} 8. Nh4 {[%emt 0:00:09]} c6 {[%emt 0:01:10]} 9. cxd5 {[%emt 0:00:36]} Nxd5 {[%emt 0:00:25]} 10. Nf5 $1 {[%emt 0:00:05]} Nf6 {[%emt 0:04:31]} 11. e4 {[%emt 0:13:47] E17: Queen's Indian: 4 g3 Bb7 5 Bg2 Be7} Ne8 {[%emt 0:08:53]} 12. Bf4 {[%emt 0:14:55]} d6 {[%emt 0:04:40]} 13. Na3 $146 {[%emt 0:13:05]} ({Predecessor:} 13. Nc3 Na6 14. Qd2 Nc5 15. Rfd1 Ne6 16. Nxe7+ Qxe7 17. Bxd6 Nxd6 18. Qxd6 Qxd6 19. Rxd6 {1-0 (42) Shulman,Y (2571)-Seirawan,Y (2643) Saint Louis 2012}) 13... Nd7 {[%emt 0:00:54]} 14. Nxd6 {[%emt 0:15:17]} ({Better is} 14. Nc4 $14) 14... Nxd6 {[%emt 0:00:15]} 15. Bxd6 {[%emt 0:00:10]} Bxd6 {[%emt 0:02:11]} 16. Qxd6 {[%emt 0:00:06]} Nc5 {[%emt 0:00:48]} 17. Rfd1 {[%emt 0:02:38]} Qxd6 {[%emt 0:00:26]} 18. Rxd6 {[%emt 0:00:05]} Rfd8 {[%emt 0:00:13]} 19. Rad1 {[%emt 0:00:16]} Ne6 {[%emt 0:00:19]} 20. e5 {[%emt 0:06:44]} Rxd6 {[%emt 0:00:38]} 21. Rxd6 {[%emt 0:00:59]} Rd8 {[%emt 0:00:48]} 22. Nc4 {[%emt 0:03:45]} Ba6 {[%emt 0:06:38]} 23. Rxd8+ {[%emt 0:01:49]} Nxd8 {[%emt 0:00:07]} 24. Nd6 {[%emt 0:00:02]} c5 {[%emt 0:01:51]} (24... Kf8 $14) 25. f4 {[%emt 0:01:46]} Kf8 {[%emt 0:00:30]} 26. Bd5 {[%emt 0:00:33]} Ke7 {[%emt 0:02:02]} 27. Kf2 {[%emt 0:02:37]} Ne6 {[%emt 0:05:58]} 28. Nf5+ {[%emt 0:00:37]} Kf8 {[%emt 0:00:08]} 29. Bxe6 {[%emt 0:00:03]} fxe6 {[%emt 0:00:03]} 30. Nd6 {[%emt 0:00:04]} Ke7 {[%emt 0:00:04]} 31. a4 {[%emt 0:02:42]} (31. Ke3 $16) 31... Kd7 {[%emt 0:00:14]} 32. Nb5 {[%emt 0:02:55]} Kc6 {[%emt 0:02:26]} 33. Nxa7+ {[%emt 0:01:01]} Kd5 {[%emt 0:00:20] [#]} (33... Kd7 $16 34. Ke3 Bc4) 34. Ke3 $1 {[%emt 0:02:34]} g6 {[%emt 0:00:49]} (34... Bc4 $142 35. Nc8 Kc6) 35. g4 {[%emt 0:02:01]} c4 {[%emt 0:01:02]} 36. Nb5 {[%emt 0:01:33]} Kc5 {[%emt 0:02:32]} 37. Nd6 {[%emt 0:04:37]} Kd5 {[%emt 0:04:34]} 38. Ne8 {[%emt 0:00:34]} Kc5 {[%emt 0:00:06]} 39. Nd6 $2 {[%emt 0:05:56]} (39. h4 $18) 39... Kd5 $1 {[%emt 0:00:12]} 40. h4 {[%emt 0:02:44]} h5 {[%emt 0:02:43]} 41. gxh5 {[%emt 0:01:29]} gxh5 {[%emt 0:00:01]} 42. Ne4 {[%emt 0:00:18]} Bb7 {[%emt 0:01:36]} 43. Nf6+ {[%emt 0:00:53]} Kc5 {[%emt 0:00:01]} 44. Nxh5 {[%emt 0:00:10]} Kb4 {[%emt 0:00:00]} 45. Ng3 {[%emt 0:00:53]} Kb3 {[%emt 0:00:20]} 46. h5 {[%emt 0:00:21]} Kxb2 {[%emt 0:00:04]} 47. h6 {[%emt 0:00:39]} c3 {[%emt 0:00:03]} 48. h7 {[%emt 0:00:14]} c2 {[%emt 0:00:02]} 49. Ne2 {[%emt 0:00:03]} Ba6 {[%emt 0:00:03] [#]} 50. h8=Q $1 {[%emt 0:01:10]} ({Inferior is} 50. Nc1 Kxc1 51. h8=Q Kb2 $11) 50... Bxe2 {[%emt 0:00:01]} 51. Qc8 $2 {[%emt 0:00:45]} (51. Qh1 Bd1 52. Qg2) 51... Ba6 {[%emt 0:00:20]} 52. Qxa6 {[%emt 0:00:09]} c1=Q+ {[%emt 0:00:07]} 53. Kf3 {[%emt 0:00:32]} Qh1+ {[%emt 0:04:16]} 54. Kg3 {[%emt 0:00:28]} Qg1+ {[%emt 0:00:20]} 55. Kh4 {[%emt 0:00:34]} Qh2+ {[%emt 0:05:01]} 56. Kg5 {[%emt 0:00:00]} Qg3+ {[%emt 0:00:08]} 57. Kf6 {[%emt 0:00:02]} Qxf4+ {[%emt 0:00:06]} 58. Kxe6 {[%emt 0:00:01]} Qg4+ {[%emt 0:00:30]} 59. Kd5 $2 {[%emt 0:00:16]} ({White should play} 59. Kd6 $18) 59... Qd7+ {[%emt 0:00:36]} 60. Ke4 {[%emt 0:01:01]} Qg4+ {[%emt 0:01:42]} 61. Ke3 {[%emt 0:00:13]} Qg3+ {[%emt 0:04:27]} (61... Qg5+ 62. Kf3 Qf5+ 63. Kg2 Qe4+ 64. Kh3 Qf5+ 65. Kg2 Qe4+ 66. Kf1 Qf5+ 67. Kg2 $11) 62. Kd4 {[%emt 0:00:07]} Qc3+ $2 {[%emt 0:00:10]} 63. Kd5 {[%emt 0:00:20]} Qc5+ {[%emt 0:00:12] [#]} 64. Ke4 $2 {[%emt 0:00:32]} (64. Ke6 $1 $18 Qc6+ 65. Ke7 Qc7+ 66. Kf6) 64... Qc2+ $2 {[%emt 0:01:40] [#]} (64... Qc6+ $1 $11 {and Black is okay.} 65. Kf5 Kc3) 65. Qd3 $1 {[%emt 0:01:45]} Qc6+ {[%emt 0:00:43]} 66. Ke3 {[%emt 0:01:26]} Qh6+ {[%emt 0:00:12]} 67. Kd4 {[%emt 0:00:16]} Qf4+ {[%emt 0:00:07]} 68. Kd5 {[%emt 0:00:15]} Qf7+ {[%emt 0:01:24]} 69. e6 {[%emt 0:00:05]} Qb7+ {[%emt 0:00:09]} 70. Kd6 {[%emt 0:00:42]} Qb8+ {[%emt 0:00:13]} 71. Ke7 {[%emt 0:00:56]} Qc7+ {[%emt 0:00:06]} 72. Ke8 {[%emt 0:00:06]} (72. Kf6 $142 Qf4+ 73. Qf5 Qh4+ 74. Qg5 Qxa4 75. e7 Qc6+ 76. Kf7) 72... Qc8+ {[%emt 0:00:32]} 73. Kf7 {[%emt 0:00:05]} Qc7+ {[%emt 0:00:27]} 74. e7 {[%emt 0:00:19]} Qf4+ {[%emt 0:00:02]} 75. Ke6 {[%emt 0:00:11]} Qg4+ $11 {[%emt 0:00:19]} 76. Kf7 $2 {[%emt 0:00:53]} (76. Ke5 $18 Qg5+ 77. Kd6 Qh6+ (77... Qf6+ 78. Kd7 Qg7) 78. Kd7) 76... Qf4+ {[%emt 0:01:13]} 77. Ke6 $2 {[%emt 0:00:26]} Qxa4 $2 {[%emt 0:00:53]} 78. Qd2+ {[%emt 0:00:43]} Kb1 {[%emt 0:00:38]} 79. Qd3+ $2 {[%emt 0:00:38]} (79. Qe1+ Kb2 80. Qe5+ Kb1 81. Qf5+ Kb2 82. Qf6+ Ka2 83. Kf7) ({Only move:} 79. Qg5 $18 Qe8 80. Qd5) 79... Kb2 {[%emt 0:00:11]} 80. Ke5 {[%emt 0:01:21]} Qe8 {[%emt 0:01:33] [#]} 81. Qd8 $1 {[%emt 0:00:28]} Qh5+ {[%emt 0:00:04]} 82. Kd6 {[%emt 0:00:04]} Qg6+ {[%emt 0:01:44]} 83. Kc7 {[%emt 0:00:09]} Qg3+ {[%emt 0:00:06]} 84. Qd6 {[%emt 0:00:21]} (84. Kxb6 $18 Qe3+ 85. Kc6 Qf3+ 86. Qd5 Qf6+ 87. Kd7) 84... Qg7 {[%emt 0:03:55]} 85. Kd8 {[%emt 0:00:15]} Qg5 {[%emt 0:00:08]} 86. Kc7 $2 {[%emt 0:00:37]} (86. Qb4+ {mates} Ka2 87. Qe4 b5 88. Kc8 Qc5+ 89. Kb7 Qg1 90. e8=Q Qg7+ 91. Ka8) 86... Qg7 {[%emt 0:00:24]} 87. Qd7 {[%emt 0:00:23]} (87. Qxb6+ $18 Ka1 88. Qe3) 87... Qe5+ {[%emt 0:00:23]} 88. Kc8 {[%emt 0:00:23]} Qc3+ {[%emt 0:00:41]} 89. Kb7 {[%emt 0:00:47]} Qf3+ {[%emt 0:00:08]} 90. Kb8 {[%emt 0:00:18]} (90. Kxb6 $18 Qe3+ 91. Kb7 Qe4+ 92. Ka6) 90... Qf4+ {[%emt 0:00:07]} 91. Qc7 {[%emt 0:00:33]} Qe4 {[%emt 0:00:42]} 92. Qxb6+ {[%emt 0:01:08]} Ka1 {[%emt 0:00:34]} 93. Qa5+ {[%emt 0:00:15]} Kb2 {[%emt 0:00:10]} 94. Qb5+ {[%emt 0:00:05]} Kc3 {[%emt 0:00:26]} 95. e8=Q {[%emt 0:00:05]} 1-0

[Event "2nd Asian Nations Team Cup U14 2019"]
[Site "Shenzhen"]
[Date "2019.12.23"]
[Round "5.14"]
[White "Zhang, Di"]
[Black "Erkhes, Bayartnar"]
[Result "0-1"]
[ECO "D02"]
[WhiteElo "2013"]
[BlackElo "1937"]
[Annotator "NA RC"]
[PlyCount "100"]
[EventDate "2019.12.19"]
[EventType "team-tourn"]
[EventCountry "CHN"]
[SourceTitle "playchess.com"]
[Source "ChessBase"]
[SourceQuality "1"]
[WhiteTeam "China"]
[BlackTeam "Mongolia"]
[WhiteTeamCountry "CHN"]
[BlackTeamCountry "MGL"]
[TimeControl "5400+30"]

{[%evp 8,100,20,18,25,32767,32767,25,24,22,32,22,20,14,21,19,18,12,19,19,14,7,17,0,-3,0,0,0,11,11,4,3,10,-6,5,0,0,-10,0,0,12,-7,0,-18,0,-135,-75,-140,-156,-154,-43,-32,9,15,17,0,0,-81,-52,-62,-52,-62,-87,-44,-83,-218,-213,-362,-383,-343,-229,-356,-337,-429,-318,-838,-462,-487,-558,-575,-275,-752,-828,-1293,-1442,-29986,-29988,-29992,-29993,-29996,-29989,-29996,-29993,-29996,-29997]} 1. Nf3 {[%emt 0:00:00]} d5 {[%emt 0:00:00]} 2. g3 {[%emt 0:00:00]} c6 {[%emt 0:00:06]} 3. Bg2 {[%emt 0:00:00]} Nf6 {[%emt 0:00:09]} ({Predecessor:} 3... Bg4 4. O-O Nd7 5. h3 Bh5 6. d4 e6 7. c4 {1-0 (47) Banusz,T (2640)-Quesada Perez,Y (2627) chess.com INT 2018}) 4. O-O {[%emt 0:00:00]} Bg4 {[%emt 0:00:11]} 5. d4 {[%emt 0:00:19]} Nbd7 {[%emt 0:00:25]} 6. h3 {[%emt 0:00:06] D02: 1 d4 d5 2 Nf3 sidelines, including 2...Nf6 3 g3 and 2...Nf6 3 Bf4} Bh5 {[%emt 0:03:47]} 7. c4 {[%emt 0:00:19]} e6 {[%emt 0:00:36]} 8. cxd5 {[%emt 0:00:18]} exd5 {[%emt 0:00:53]} 9. Qb3 $146 {[%emt 0:00:10]} (9. Ne5 Ne4 10. Nd2 Nxd2 11. Bxd2 Nxe5 12. dxe5 Bc5 13. Kh2 O-O {½-½ (31) Svidler,P (2768)-Karjakin,S (2753) Wijk aan Zee 2018}) 9... Qb6 {[%emt 0:16:54]} 10. Qe3+ {[%emt 0:00:18]} Be7 {[%emt 0:00:24]} 11. Nh4 {[%emt 0:00:07]} Bg6 {[%emt 0:02:46]} 12. Nxg6 {[%emt 0:00:08]} hxg6 {[%emt 0:00:05]} 13. Nc3 {[%emt 0:00:27]} Qd8 {[%emt 0:01:18]} 14. b4 {[%emt 0:02:59]} a6 {[%emt 0:05:18]} 15. Na4 {[%emt 0:05:02]} O-O {[%emt 0:02:44]} 16. Nc5 {[%emt 0:00:35]} Re8 {[%emt 0:02:25]} 17. Qd3 {[%emt 0:02:25]} b6 {[%emt 0:13:04]} 18. Nxd7 $1 {[%emt 0:00:44]} Qxd7 {[%emt 0:00:06]} 19. Bd2 {[%emt 0:01:11]} Ne4 {[%emt 0:05:01]} 20. Rab1 {[%emt 0:06:33]} Nd6 {[%emt 0:06:12]} 21. Bf4 {[%emt 0:06:57]} Nc4 {[%emt 0:07:24]} 22. e4 {[%emt 0:03:44]} b5 {[%emt 0:01:44]} 23. h4 {[%emt 0:04:46]} a5 {[%emt 0:03:00]} 24. a3 {[%emt 0:10:56]} axb4 {[%emt 0:01:11]} 25. axb4 {[%emt 0:00:02]} Ra4 {[%emt 0:03:40]} 26. e5 {[%emt 0:07:01]} (26. exd5 $11 cxd5 27. Rfe1) 26... Rxb4 {[%emt 0:02:50]} 27. Rbe1 {[%emt 0:00:56] [#]} (27. Rxb4 $15 Bxb4 28. Ra1) 27... Qf5 $1 {[%emt 0:01:59]} 28. Qf3 {[%emt 0:00:37]} g5 {[%emt 0:01:13]} (28... Ra8 $19 29. Bc1 Ra2) 29. hxg5 $1 {[%emt 0:00:20]} Ra4 {[%emt 0:02:23]} 30. Qh5 {[%emt 0:01:29]} Bb4 {[%emt 0:05:47]} 31. Re2 {[%emt 0:00:53]} g6 {[%emt 0:04:40]} 32. Qh4 {[%emt 0:04:51]} (32. Qh1 $11) 32... Qd3 {[%emt 0:01:32]} 33. Qg4 {[%emt 0:04:21]} Re6 $1 {[%emt 0:00:21]} ({Much weaker is} 33... Qxd4 $6 34. Qd7 $14) 34. Bf3 $1 {[%emt 0:01:39]} Qxd4 {[%emt 0:03:07]} 35. Kg2 $1 {[%emt 0:00:26]} Bf8 {[%emt 0:00:54]} 36. Rh1 $2 {[%emt 0:00:53]} (36. Qh3 $15) 36... Ra1 {[%emt 0:00:48]} 37. Ree1 {[%emt 0:01:32]} (37. Qh4 $142 Rxh1 38. Qxh1) 37... Rxe1 {[%emt 0:00:12]} 38. Rxe1 {[%emt 0:00:03]} Bg7 {[%emt 0:00:44]} 39. Rd1 {[%emt 0:01:10]} (39. Qh3 {was necessary.} Qc3 40. Re2 Bxe5 41. Bg4) 39... Qb2 {[%emt 0:01:02]} ({Weaker is} 39... Nxe5 40. Qxe6 fxe6 41. Rxd4 $11) 40. Qh3 {[%emt 0:00:44]} Nxe5 {[%emt 0:00:39]} 41. Bc1 $2 {[%emt 0:00:58]} (41. Rd2 Qc3 42. Bd1) 41... Qb4 {[%emt 0:00:40]} 42. Be2 {[%emt 0:01:45]} Qe4+ {[%emt 0:00:19]} 43. Kf1 {[%emt 0:00:01]} d4 {[%emt 0:00:47]} 44. f3 $2 {[%emt 0:01:54]} (44. Qh4 Qxh4 45. gxh4) 44... Qd5 {[%emt 0:01:16]} 45. Rd2 {[%emt 0:01:05]} d3 {[%emt 0:00:23]} 46. Bd1 {[%emt 0:00:09]} Nxf3 {[%emt 0:00:13]} 47. Qg4 {[%emt 0:00:25]} Re1+ {[%emt 0:00:06]} 48. Kg2 {[%emt 0:00:02]} Rg1+ {[%emt 0:00:18]} 49. Kh3 {[%emt 0:00:11]} Nxg5+ {[%emt 0:00:08]} 50. Kh4 {[%emt 0:00:09]} Rh1+ {[%emt 0:00:05]} 0-1

[Event "2nd Asian Nations Team Cup U14 2019"]
[Site "Shenzhen"]
[Date "2019.12.23"]
[Round "5.15"]
[White "Temuujin, Kherlen"]
[Black "Xiao, Tong"]
[Result "1-0"]
[ECO "E04"]
[WhiteElo "1711"]
[BlackElo "1925"]
[Annotator "NA RC"]
[PlyCount "79"]
[EventDate "2019.12.19"]
[EventType "team-tourn"]
[EventCountry "CHN"]
[SourceTitle "playchess.com"]
[Source "ChessBase"]
[SourceQuality "1"]
[WhiteTeam "Mongolia"]
[BlackTeam "China"]
[WhiteTeamCountry "MGL"]
[BlackTeamCountry "CHN"]
[TimeControl "5400+30"]

{[%evp 8,79,18,15,8,32767,32767,32767,32767,13,19,5,53,14,16,0,41,24,30,10,30,10,11,-18,5,3,20,34,122,132,285,295,297,309,32767,32767,32767,32767,329,340,398,341,422,488,483,530,545,555,610,562,600,635,603,621,631,675,657,839,861,32767,32767,32767,32767,32767,32767,32767,32767,32767,32767,1204,29961,29976,12841,29979]} 1. c4 {[%emt 0:00:13]} Nf6 {[%emt 0:00:00]} 2. Nf3 {[%emt 0:00:09]} e6 {[%emt 0:00:00]} 3. g3 {[%emt 0:00:41]} d5 {[%emt 0:00:00]} 4. d4 {[%emt 0:00:05]} dxc4 {[%emt 0:00:00]} 5. Bg2 {[%emt 0:00:16]} Nc6 {[%emt 0:00:02]} 6. Qa4 {[%emt 0:00:48]} Bb4+ {[%emt 0:00:05]} 7. Bd2 {[%emt 0:00:07]} Nd5 {[%emt 0:00:06]} 8. Bxb4 {[%emt 0:37:35]} Ndxb4 {[%emt 0:00:53]} 9. Ne5 {[%emt 0:01:25]} Bd7 {[%emt 0:02:04] E04: Open Catalan: 5 Nf3} (9... O-O 10. Nxc6 Nxc6 11. e3 e5 12. d5 Ne7 13. Qxc4 c6 14. dxc6 Nxc6 15. Nc3 Be6 16. Qb5 Qb6 17. Qxb6 axb6 {½-½ (31) Wojtaszek,R (2744)-Mamedyarov,S (2814) Shamkir 2018}) 10. Nxd7 {[%emt 0:01:47]} Qxd7 {[%emt 0:02:44]} ({But not} 10... Kxd7 11. Nc3 $16) 11. a3 {[%emt 0:04:48]} Nd5 {[%emt 0:05:38]} (11... b5 $5 12. Qd1 Nd5 $15) 12. Qxc4 {[%emt 0:01:18]} Nb6 {[%emt 0:00:56]} 13. Bxc6 $146 {[%emt 0:01:01]} ({Predecessor:} 13. Qc3 O-O-O 14. e3 e5 15. Bxc6 bxc6 16. O-O exd4 17. exd4 {1-0 (37) Bindrich,F (2588)-Neiksans,A (2574) Berlin 2018}) 13... bxc6 {[%emt 0:00:28]} 14. Qd3 {[%emt 0:04:03]} Rd8 {[%emt 0:00:24]} 15. Qc2 {[%emt 0:04:43]} Qxd4 {[%emt 0:01:56]} 16. Qxc6+ {[%emt 0:05:43]} Rd7 {[%emt 0:00:58]} 17. O-O {[%emt 0:06:15]} Qxb2 {[%emt 0:02:50]} (17... a5 $11) 18. Nc3 {[%emt 0:00:13]} O-O $2 {[%emt 0:02:00] [#]} (18... Qc2 $16) 19. Ra2 $1 {[%emt 0:05:08]} Qb3 {[%emt 0:07:20]} 20. Rb1 {[%emt 0:00:35]} Qxb1+ {[%emt 0:00:24]} 21. Nxb1 {[%emt 0:00:09]} Rd1+ {[%emt 0:00:03]} 22. Kg2 {[%emt 0:00:12]} Rxb1 {[%emt 0:00:04]} 23. Qxc7 {[%emt 0:01:28]} a5 {[%emt 0:01:16]} 24. Rd2 {[%emt 0:00:26]} a4 {[%emt 0:01:59]} 25. e4 {[%emt 0:01:42]} g6 {[%emt 0:04:51]} 26. Rd6 {[%emt 0:00:48]} Nc8 {[%emt 0:00:00]} 27. Ra6 {[%emt 0:01:15]} Rd1 {[%emt 0:00:45]} 28. Rxa4 {[%emt 0:01:10]} Nd6 {[%emt 0:00:07]} 29. Qc2 {[%emt 0:00:41]} Re1 {[%emt 0:01:01]} 30. Rb4 {[%emt 0:03:01]} Ra1 {[%emt 0:01:33]} 31. a4 {[%emt 0:01:36]} Ra3 {[%emt 0:01:09]} 32. Rd4 {[%emt 0:00:31]} Nc8 {[%emt 0:00:53]} 33. Qb2 {[%emt 0:00:10]} e5 {[%emt 0:00:13]} 34. Rb4 {[%emt 0:02:23]} Rd3 {[%emt 0:00:09]} 35. Qxe5 {[%emt 0:00:08]} Rd2 {[%emt 0:00:27]} 36. Rb8 {[%emt 0:00:17]} Nd6 {[%emt 0:00:22]} 37. Rxf8+ {[%emt 0:00:54]} Kxf8 {[%emt 0:00:02]} 38. a5 {[%emt 0:00:20]} Kg8 {[%emt 0:00:15]} 39. a6 {[%emt 0:00:12]} Nc4 {[%emt 0:00:16]} 40. Qc3 {[%emt 0:00:29]} 1-0

[Event "2nd Asian Nations Team Cup U14 2019"]
[Site "Shenzhen"]
[Date "2019.12.23"]
[Round "5.16"]
[White "Chen, Yuan"]
[Black "Angar, Zoljargal"]
[Result "1/2-1/2"]
[ECO "B92"]
[WhiteElo "2056"]
[BlackElo "1696"]
[Annotator "NA RC"]
[PlyCount "115"]
[EventDate "2019.12.19"]
[EventType "team-tourn"]
[EventCountry "CHN"]
[SourceTitle "playchess.com"]
[Source "ChessBase"]
[SourceQuality "1"]
[WhiteTeam "China"]
[BlackTeam "Mongolia"]
[WhiteTeamCountry "CHN"]
[BlackTeamCountry "MGL"]
[TimeControl "5400+30"]

{[%evp 8,115,30,18,33,14,26,10,23,32767,25,3,42,22,37,-14,39,12,20,0,0,0,-5,0,0,0,16,8,13,19,16,0,0,7,12,0,25,1,20,7,10,9,16,0,25,-16,-10,0,0,0,-8,-13,12,6,20,6,25,0,12,17,14,15,18,12,27,26,62,48,52,41,120,132,120,119,132,63,77,77,89,52,55,31,51,0,0,0,0,0,0,32767,32767,32767,32767,0,0,0,0,0,0,0,32767,32767,32767,32767,0,0,0,0,0,0]} 1. e4 {[%emt 0:00:00]} c5 {[%emt 0:00:00]} 2. Nf3 {[%emt 0:00:00]} d6 {[%emt 0:00:13]} 3. d4 cxd4 {[%emt 0:00:42]} 4. Nxd4 {[%emt 0:00:00]} Nf6 {[%emt 0:00:11]} 5. Nc3 {[%emt 0:00:00]} a6 {[%emt 0:00:20]} 6. Be2 {[%emt 0:00:28]} e5 {[%emt 0:00:52]} 7. Nb3 {[%emt 0:00:00]} Be7 {[%emt 0:02:02]} 8. O-O {[%emt 0:00:00]} O-O {[%emt 0:00:52]} 9. Bg5 {[%emt 0:01:47]} Nbd7 {[%emt 0:03:49]} 10. a4 {[%emt 0:03:09]} Qc7 {[%emt 0:07:25] B92: Sicilian Najdorf: 6 Be2} (10... b6 11. Nd2 Bb7 12. Bc4 h6 13. Bh4 Qc7 14. Qe2 Rfc8 15. Rfd1 Nf8 16. Bxf6 Bxf6 17. Nd5 Qd8 18. Nf1 Ng6 {1-0 (50) Yu,Y (2750)-Atabayev,S (2437) Ashkhabad 2017}) 11. Bg4 {[%emt 0:11:32]} Nb6 $146 {[%emt 0:19:58]} ({Predecessor:} 11... h6 $5 {[%cal Rh6g5]} 12. Bxd7 (12. Bxf6 Nxf6 13. Bxc8 Raxc8 14. Qd3 Qc4 15. Rfd1 Rfd8 16. a5 Rc7 17. f3 h5 18. Ra4 {1-0 (39) Rios,C (2452)-Mateus,A (2293) Bagre 2018}) 12... hxg5 13. Bxc8 Raxc8 $11) 12. Bxc8 {[%emt 0:00:08]} (12. Bxf6 $5 Bxf6 13. a5 $14) 12... Raxc8 {[%emt 0:00:28]} 13. Nd2 {[%emt 0:04:07]} Nfd5 {[%emt 0:11:25]} 14. Nxd5 {[%emt 0:05:41]} Nxd5 {[%emt 0:00:17]} 15. Bxe7 {[%emt 0:00:25]} Nxe7 {[%emt 0:00:11]} 16. c4 {[%emt 0:04:25]} f5 {[%emt 0:01:45]} 17. b3 {[%emt 0:19:39]} Nc6 {[%emt 0:07:39]} 18. exf5 {[%emt 0:03:51]} Rxf5 {[%emt 0:01:58]} 19. Nf3 {[%emt 0:00:07]} Rcf8 {[%emt 0:00:33]} 20. Qd5+ {[%emt 0:02:41]} Kh8 {[%emt 0:04:38]} 21. Rad1 {[%emt 0:00:43]} R8f6 {[%emt 0:00:55]} 22. Rfe1 {[%emt 0:19:38]} h6 {[%emt 0:05:44]} 23. Re3 {[%emt 0:01:19]} Qb6 {[%emt 0:07:24]} 24. Qd3 {[%emt 0:03:39]} Rf4 {[%emt 0:02:50]} 25. Rd2 {[%emt 0:10:19]} Ne7 {[%emt 0:00:00]} 26. Qc3 {[%emt 0:06:47]} Nf5 {[%emt 0:00:00]} 27. c5 {[%emt 0:00:21]} Qxc5 {[%emt 0:00:00]} 28. Qxc5 {[%emt 0:00:05]} dxc5 {[%emt 0:00:00]} 29. Rxe5 {[%emt 0:00:05]} Rb4 {[%emt 0:01:39]} 30. Rxc5 {[%emt 0:00:59]} Rxb3 {[%emt 0:00:28]} 31. h3 {[%emt 0:00:06]} Nd6 {[%emt 0:00:52]} 32. Rcd5 {[%emt 0:02:19]} Nc4 {[%emt 0:03:21]} 33. Rd8+ {[%emt 0:00:19]} Kh7 {[%emt 0:00:09]} 34. Re2 {[%emt 0:00:35]} Nd6 {[%emt 0:02:45]} 35. Rd7 {[%emt 0:00:36]} b5 {[%emt 0:01:17]} 36. axb5 {[%emt 0:00:06]} axb5 {[%emt 0:00:08]} 37. Nd4 {[%emt 0:01:15]} Rb1+ {[%emt 0:00:59]} 38. Kh2 {[%emt 0:00:03]} Nf5 {[%emt 0:00:47]} (38... Nf7 $14) 39. Nxf5 {[%emt 0:00:28]} Rxf5 {[%emt 0:00:06]} 40. Ree7 {[%emt 0:00:23]} Rg5 {[%emt 0:00:06] [#]} 41. Rb7 {[%emt 0:00:57]} (41. h4 $1 $16 {[%cal Rh4g5]} Rg4 42. f3) 41... Rb2 {[%emt 0:00:29]} 42. Rf7 {[%emt 0:00:03]} Kg8 {[%emt 0:00:06]} 43. h4 {[%emt 0:00:28]} Rg6 $1 {[%emt 0:01:32]} 44. Rf5 {[%emt 0:00:41]} Rf6 {[%emt 0:00:57]} 45. Rbxb5 {[%emt 0:01:36]} Rxb5 {[%emt 0:00:36]} 46. Rxb5 {[%emt 0:00:04]} Rxf2 {[%emt 0:00:04]} 47. Rb7 {[%emt 0:00:08]} Rf7 {[%emt 0:00:11]} 48. Rb5 {[%emt 0:00:35]} Ra7 {[%emt 0:00:19]} 49. Kh3 {[%emt 0:00:07]} Ra4 {[%emt 0:00:11]} 50. Rb7 {[%emt 0:00:04]} h5 {[%emt 0:00:26]} 51. g3 {[%emt 0:00:36]} Kh7 {[%emt 0:00:07]} 52. Kg2 {[%emt 0:00:05]} Ra3 {[%emt 0:00:10]} 53. Rb5 {[%emt 0:00:48]} Kh6 {[%emt 0:00:10]} 54. Rb6+ {[%emt 0:00:09]} g6 {[%emt 0:00:07]} 55. Rb7 {[%emt 0:00:05]} Rc3 {[%emt 0:00:22]} 56. Kf2 {[%emt 0:00:10]} Rc6 {[%emt 0:00:20]} 57. Rb5 {[%emt 0:02:00]} Rc3 {[%emt 0:00:46]} 58. Ra5 $11 {[%emt 0:00:09]} 1/2-1/2